[Event "January 9 Late 2024"]
[Site "https://www.chess.com"]
[Date "2024.01.09"]
[Round "4"]
[White "Buchenau, Frank"]
[Black "Domalchuk-Jonasson, Aleksandr"]
[Result "1-0"]
[Board "125"]
[TimeControl "180+1"]
[WhiteFideId "4604350"]
[BlackFideId "14142805"]
[WhiteElo "2412"]
[BlackElo "2618"]
[WhiteTeam "GER"]
[BlackTeam "ISL"]
[WhiteClock "0:00:54"]
[BlackClock "0:01:29"]

1. e4 {[%clk 0:03:00]}  a6 {[%clk 0:02:53]} 2. d4 {[%clk 0:02:58]}  c6 {[%clk 0:02:54]} 3. c4 {[%clk 0:02:57]}  d5 {[%clk 0:02:54]} 4. Nc3 {[%clk 0:02:56]}  dxe4 {[%clk 0:02:52]} 5. Nxe4 {[%clk 0:02:55]}  Nf6 {[%clk 0:02:49]} 6. Nxf6+ {[%clk 0:02:55]}  gxf6 {[%clk 0:02:50]} 7. Be3 {[%clk 0:02:47]}  Qa5+ {[%clk 0:02:42]} 8. Qd2 {[%clk 0:02:44]}  Qxd2+ {[%clk 0:02:41]} 9. Kxd2 {[%clk 0:02:44]}  f5 {[%clk 0:02:33]} 10. Ne2 {[%clk 0:02:36]}  e6 {[%clk 0:02:31]} 11. Nf4 {[%clk 0:02:32]}  Bb4+ {[%clk 0:02:30]} 12. Kc2 {[%clk 0:02:32]}  Nd7 {[%clk 0:02:30]} 13. a3 {[%clk 0:02:26]}  Bd6 {[%clk 0:02:30]} 14. Be2 {[%clk 0:02:21]}  a5 {[%clk 0:02:30]} 15. Rad1 {[%clk 0:02:14]}  Ke7 {[%clk 0:02:28]} 16. c5 {[%clk 0:02:08]}  Bc7 {[%clk 0:02:27]} 17. Nh5 {[%clk 0:02:07]}  Rg8 {[%clk 0:02:25]} 18. h4 {[%clk 0:02:03]}  Rxg2 {[%clk 0:02:17]} 19. Rhg1 {[%clk 0:01:58]}  Rh2 {[%clk 0:02:02]} 20. Rg7 {[%clk 0:01:29]}  Rxh4 {[%clk 0:01:49]} 21. Bg5+ {[%clk 0:01:27]}  Ke8 {[%clk 0:01:32]} 22. Rg8+ {[%clk 0:01:24]}  Nf8 {[%clk 0:01:32]} 23. Nf6+ {[%clk 0:01:19]}  Ke7 {[%clk 0:01:30]} 24. Nd5+ {[%clk 0:01:09]}  Kd7 {[%clk 0:01:29]} 25. Nf6+ {[%clk 0:01:05]}  Ke7 {[%clk 0:01:29]} 26. Bxh4 {[%clk 0:01:05]}  Ng6 {[%clk 0:01:29]} 27. Re8# {[%clk 0:00:54]} 1-0

[Event "January 9 Late 2024"]
[Site "https://www.chess.com"]
[Date "2024.01.09"]
[Round "4"]
[White "Carvajal Gorgona, Jonathan"]
[Black "Mokshanov, Alexey"]
[Result "0-1"]
[Board "126"]
[TimeControl "180+1"]
[WhiteFideId "6500625"]
[BlackFideId "24121657"]
[WhiteElo "2364"]
[BlackElo "2614"]
[WhiteTeam "CRC"]
[BlackTeam "RUS"]
[WhiteClock "0:00:33"]
[BlackClock "0:01:09"]

1. e4 {[%clk 0:03:00]}  e6 {[%clk 0:03:00]} 2. d4 {[%clk 0:03:00]}  d5 {[%clk 0:03:00]} 3. exd5 {[%clk 0:03:00]}  exd5 {[%clk 0:03:00]} 4. Nf3 {[%clk 0:03:01]}  h6 {[%clk 0:03:00]} 5. Bd3 {[%clk 0:02:53]}  Qf6 {[%clk 0:03:00]} 6. Be3 {[%clk 0:02:49]}  Bd6 {[%clk 0:03:00]} 7. Nbd2 {[%clk 0:02:48]}  Ne7 {[%clk 0:02:57]} 8. c3 {[%clk 0:02:48]}  c6 {[%clk 0:02:56]} 9. Qc2 {[%clk 0:02:49]}  Bf5 {[%clk 0:02:56]} 10. O-O-O {[%clk 0:02:48]}  Nd7 {[%clk 0:02:56]} 11. Nf1 {[%clk 0:02:24]}  O-O-O {[%clk 0:02:42]} 12. Ng3 {[%clk 0:02:23]}  Bxd3 {[%clk 0:02:42]} 13. Qxd3 {[%clk 0:02:22]}  Qg6 {[%clk 0:02:31]} 14. Qxg6 {[%clk 0:02:16]}  fxg6 {[%clk 0:02:30]} 15. Rde1 {[%clk 0:02:12]}  Rde8 {[%clk 0:02:28]} 16. Ne5 {[%clk 0:01:58]}  Bxe5 {[%clk 0:02:12]} 17. dxe5 {[%clk 0:01:57]}  Nxe5 {[%clk 0:02:12]} 18. Kc2 {[%clk 0:01:47]}  Nd7 {[%clk 0:01:27]} 19. Bxa7 {[%clk 0:01:26]}  b6 {[%clk 0:01:27]} 20. Re6 {[%clk 0:01:27]}  Nf5 {[%clk 0:01:27]} 21. Rxc6+ {[%clk 0:01:18]}  Kb7 {[%clk 0:01:25]} 22. Rxg6 {[%clk 0:01:18]}  Nxg3 {[%clk 0:01:25]} 23. Rxg3 {[%clk 0:01:07]}  g5 {[%clk 0:01:18]} 24. Bxb6 {[%clk 0:01:06]}  Nxb6 {[%clk 0:01:16]} 25. Kd3 {[%clk 0:00:48]}  Rhf8 {[%clk 0:01:15]} 26. f3 {[%clk 0:00:42]}  Nc4 {[%clk 0:01:14]} 27. h4 {[%clk 0:00:40]}  Nxb2+ {[%clk 0:01:12]} 28. Kd4 {[%clk 0:00:34]}  Kc6 {[%clk 0:01:09]} 29. hxg5 {[%clk 0:00:33]}  Rf4# {[%clk 0:01:09]} 0-1

[Event "January 9 Late 2024"]
[Site "https://www.chess.com"]
[Date "2024.01.09"]
[Round "4"]
[White "Carlsen, Magnus"]
[Black "Krzywda, Andrzej"]
[Result "1-0"]
[Board "127"]
[TimeControl "180+1"]
[WhiteFideId "1503014"]
[BlackFideId "1114565"]
[WhiteElo "3359"]
[BlackElo "2408"]
[WhiteTeam "NOR"]
[BlackTeam "POL"]
[WhiteClock "0:01:51"]
[BlackClock "0:00:13"]

1. e4 {[%clk 0:03:00]}  e5 {[%clk 0:02:59]} 2. f4 {[%clk 0:02:59]}  d5 {[%clk 0:02:58]} 3. Nf3 {[%clk 0:02:58]}  dxe4 {[%clk 0:02:53]} 4. Nxe5 {[%clk 0:02:57]}  Bd6 {[%clk 0:02:40]} 5. d4 {[%clk 0:02:55]}  Nf6 {[%clk 0:02:29]} 6. Nc3 {[%clk 0:02:45]}  O-O {[%clk 0:02:29]} 7. Bc4 {[%clk 0:02:43]}  c5 {[%clk 0:02:23]} 8. Be3 {[%clk 0:02:42]}  cxd4 {[%clk 0:02:22]} 9. Qxd4 {[%clk 0:02:42]}  Nc6 {[%clk 0:01:51]} 10. Nxc6 {[%clk 0:02:40]}  bxc6 {[%clk 0:01:52]} 11. O-O-O {[%clk 0:02:40]}  Be7 {[%clk 0:01:46]} 12. Qe5 {[%clk 0:02:27]}  Nd7 {[%clk 0:01:35]} 13. Qxe4 {[%clk 0:02:26]}  Bf6 {[%clk 0:01:35]} 14. Qxc6 {[%clk 0:02:22]}  Rb8 {[%clk 0:01:32]} 15. Bd4 {[%clk 0:02:21]}  Bxd4 {[%clk 0:00:53]} 16. Rxd4 {[%clk 0:02:21]}  Qe7 {[%clk 0:00:52]} 17. Qe4 {[%clk 0:02:16]}  Qc5 {[%clk 0:00:42]} 18. Rhd1 {[%clk 0:02:13]}  Nf6 {[%clk 0:00:41]} 19. Qe5 {[%clk 0:02:11]}  Qb6 {[%clk 0:00:39]} 20. Na4 {[%clk 0:02:07]}  Qb7 {[%clk 0:00:39]} 21. Bb3 {[%clk 0:02:05]}  Bg4 {[%clk 0:00:37]} 22. Nc5 {[%clk 0:02:05]}  Qb6 {[%clk 0:00:33]} 23. Rd6 {[%clk 0:02:04]}  Qb4 {[%clk 0:00:28]} 24. R1d4 {[%clk 0:01:56]}  Qa5 {[%clk 0:00:27]} 25. Nd7 {[%clk 0:01:54]}  Rfe8 {[%clk 0:00:20]} 26. Nxf6+ {[%clk 0:01:50]}  gxf6 {[%clk 0:00:13]} 27. Qxa5 {[%clk 0:01:51]} 1-0

[Event "January 9 Late 2024"]
[Site "https://www.chess.com"]
[Date "2024.01.09"]
[Round "4"]
[White "Lagarde, Maxime"]
[Black "Boraso, Alessio"]
[Result "1-0"]
[Board "128"]
[TimeControl "180+1"]
[WhiteFideId "662399"]
[BlackFideId "848077"]
[WhiteElo "2826"]
[BlackElo "2444"]
[WhiteTeam "FRA"]
[BlackTeam "ITA"]
[WhiteClock "0:01:17"]
[BlackClock "0:00:24"]

1. d4 {[%clk 0:02:18]}  d6 {[%clk 0:03:00]} 2. c4 {[%clk 0:02:16]}  Nf6 {[%clk 0:03:01]} 3. Nf3 {[%clk 0:02:15]}  g6 {[%clk 0:03:01]} 4. e3 {[%clk 0:02:15]}  Bg7 {[%clk 0:03:02]} 5. Be2 {[%clk 0:02:15]}  O-O {[%clk 0:03:02]} 6. O-O {[%clk 0:02:16]}  Nc6 {[%clk 0:03:02]} 7. Nc3 {[%clk 0:02:17]}  e5 {[%clk 0:03:02]} 8. a3 {[%clk 0:02:11]}  Bf5 {[%clk 0:03:02]} 9. b4 {[%clk 0:02:11]}  Ne4 {[%clk 0:03:01]} 10. Bb2 {[%clk 0:02:10]}  exd4 {[%clk 0:02:58]} 11. Nxe4 {[%clk 0:02:05]}  Bxe4 {[%clk 0:02:57]} 12. Nxd4 {[%clk 0:02:05]}  Nxd4 {[%clk 0:02:56]} 13. Bxd4 {[%clk 0:02:06]}  Re8 {[%clk 0:02:52]} 14. Rc1 {[%clk 0:02:04]}  b6 {[%clk 0:02:43]} 15. f3 {[%clk 0:02:01]}  Bb7 {[%clk 0:02:42]} 16. e4 {[%clk 0:01:56]}  Qg5 {[%clk 0:02:30]} 17. Bf2 {[%clk 0:01:47]}  Be5 {[%clk 0:02:22]} 18. Kh1 {[%clk 0:01:45]}  f5 {[%clk 0:02:17]} 19. exf5 {[%clk 0:01:44]}  gxf5 {[%clk 0:02:14]} 20. c5 {[%clk 0:01:38]}  Qh5 {[%clk 0:02:05]} 21. f4 {[%clk 0:01:32]}  Qg6 {[%clk 0:02:03]} 22. Bf3 {[%clk 0:01:32]}  Bxf3 {[%clk 0:01:38]} 23. Qxf3 {[%clk 0:01:33]}  Bg7 {[%clk 0:01:30]} 24. cxd6 {[%clk 0:01:32]}  Qxd6 {[%clk 0:01:26]} 25. Rc6 {[%clk 0:01:30]}  Qd7 {[%clk 0:01:24]} 26. Rfc1 {[%clk 0:01:29]}  Rac8 {[%clk 0:01:23]} 27. g3 {[%clk 0:01:28]}  Kh8 {[%clk 0:01:22]} 28. Kg2 {[%clk 0:01:28]}  Re6 {[%clk 0:01:22]} 29. b5 {[%clk 0:01:25]}  Rxc6 {[%clk 0:01:20]} 30. bxc6 {[%clk 0:01:26]}  Qe6 {[%clk 0:01:18]} 31. Re1 {[%clk 0:01:25]}  Qd6 {[%clk 0:01:12]} 32. Rd1 {[%clk 0:01:25]}  Qe6 {[%clk 0:01:12]} 33. Rd7 {[%clk 0:01:25]}  a5 {[%clk 0:00:57]} 34. a4 {[%clk 0:01:24]}  Qa2 {[%clk 0:00:33]} 35. Qd5 {[%clk 0:01:19]}  Qxa4 {[%clk 0:00:24]} 36. Rd8+ {[%clk 0:01:17]} 1-0

[Event "January 9 Late 2024"]
[Site "https://www.chess.com"]
[Date "2024.01.09"]
[Round "4"]
[White "Blanco Diez, David"]
[Black "Kosteniuk, Alexandra"]
[Result "0-1"]
[Board "130"]
[TimeControl "180+1"]
[WhiteFideId "32032927"]
[BlackFideId "4128125"]
[WhiteElo "2436"]
[BlackElo "2725"]
[WhiteTeam "ESP"]
[BlackTeam "SUI"]
[WhiteClock "0:00:04"]
[BlackClock "0:00:50"]

1. e4 {[%clk 0:02:58]}  c6 {[%clk 0:03:00]} 2. c4 {[%clk 0:02:57]}  d5 {[%clk 0:03:01]} 3. cxd5 {[%clk 0:02:57]}  cxd5 {[%clk 0:03:01]} 4. exd5 {[%clk 0:02:58]}  Nf6 {[%clk 0:03:02]} 5. d4 {[%clk 0:02:58]}  Nxd5 {[%clk 0:03:01]} 6. Nc3 {[%clk 0:02:57]}  Nc6 {[%clk 0:03:01]} 7. Nf3 {[%clk 0:02:50]}  g6 {[%clk 0:02:59]} 8. Bc4 {[%clk 0:02:48]}  Be6 {[%clk 0:02:59]} 9. Bb3 {[%clk 0:02:45]}  Bg7 {[%clk 0:02:58]} 10. O-O {[%clk 0:02:44]}  O-O {[%clk 0:02:57]} 11. Re1 {[%clk 0:02:39]}  Nxc3 {[%clk 0:02:24]} 12. bxc3 {[%clk 0:02:36]}  Bd5 {[%clk 0:02:21]} 13. Bb2 {[%clk 0:02:26]}  a5 {[%clk 0:02:16]} 14. Bxd5 {[%clk 0:02:18]}  Qxd5 {[%clk 0:02:16]} 15. Qb3 {[%clk 0:02:19]}  Qd7 {[%clk 0:02:11]} 16. c4 {[%clk 0:01:59]}  a4 {[%clk 0:02:05]} 17. Qe3 {[%clk 0:01:56]}  Rfe8 {[%clk 0:01:54]} 18. Rad1 {[%clk 0:01:52]}  Na5 {[%clk 0:01:54]} 19. Rc1 {[%clk 0:01:16]}  Rac8 {[%clk 0:01:51]} 20. Red1 {[%clk 0:01:03]}  Nxc4 {[%clk 0:01:48]} 21. Qe2 {[%clk 0:01:01]}  Nxb2 {[%clk 0:01:41]} 22. Qxb2 {[%clk 0:01:02]}  Qd5 {[%clk 0:01:36]} 23. Ne5 {[%clk 0:00:48]}  Rxc1 {[%clk 0:01:28]} 24. Rxc1 {[%clk 0:00:46]}  Rd8 {[%clk 0:01:27]} 25. h3 {[%clk 0:00:31]}  Qxd4 {[%clk 0:01:20]} 26. Qxd4 {[%clk 0:00:31]}  Rxd4 {[%clk 0:01:21]} 27. Rc8+ {[%clk 0:00:31]}  Bf8 {[%clk 0:01:21]} 28. Rc7 {[%clk 0:00:19]}  b5 {[%clk 0:01:12]} 29. Nd7 {[%clk 0:00:20]}  b4 {[%clk 0:01:07]} 30. Rb7 {[%clk 0:00:16]}  Kg7 {[%clk 0:01:00]} 31. Nc5 {[%clk 0:00:11]}  a3 {[%clk 0:00:51]} 32. Nb3 {[%clk 0:00:11]}  Rd1+ {[%clk 0:00:50]} 33. Kh2 {[%clk 0:00:11]}  e6 {[%clk 0:00:50]} 34. Rc7 {[%clk 0:00:04]}  Bd6+ {[%clk 0:00:50]} 0-1

[Event "January 9 Late 2024"]
[Site "https://www.chess.com"]
[Date "2024.01.09"]
[Round "4"]
[White "Munoz, Francisco Javier"]
[Black "Rubio Tent, Francisco"]
[Result "1-0"]
[Board "132"]
[TimeControl "180+1"]
[WhiteFideId "128368"]
[BlackFideId "2238233"]
[WhiteElo "2651"]
[BlackElo "2419"]
[WhiteTeam "ARG"]
[BlackTeam "ESP"]
[WhiteClock "0:01:06"]
[BlackClock "0:00:00"]

1. e4 {[%clk 0:03:00]}  c6 {[%clk 0:02:59]} 2. Nc3 {[%clk 0:03:01]}  d5 {[%clk 0:02:59]} 3. exd5 {[%clk 0:03:02]}  cxd5 {[%clk 0:02:57]} 4. d4 {[%clk 0:03:03]}  Nc6 {[%clk 0:02:51]} 5. Bf4 {[%clk 0:03:04]}  a6 {[%clk 0:02:50]} 6. Bd3 {[%clk 0:03:04]}  Nf6 {[%clk 0:02:50]} 7. Nge2 {[%clk 0:03:04]}  Bg4 {[%clk 0:02:49]} 8. f3 {[%clk 0:03:05]}  Bh5 {[%clk 0:02:49]} 9. g4 {[%clk 0:03:05]}  Bg6 {[%clk 0:02:49]} 10. h4 {[%clk 0:03:06]}  Bxd3 {[%clk 0:02:47]} 11. Qxd3 {[%clk 0:03:06]}  e6 {[%clk 0:02:47]} 12. h5 {[%clk 0:03:06]}  h6 {[%clk 0:02:44]} 13. O-O-O {[%clk 0:03:00]}  Bd6 {[%clk 0:02:43]} 14. Bxd6 {[%clk 0:03:00]}  Qxd6 {[%clk 0:02:44]} 15. Kb1 {[%clk 0:03:00]}  O-O-O {[%clk 0:02:42]} 16. Nc1 {[%clk 0:03:00]}  e5 {[%clk 0:02:29]} 17. dxe5 {[%clk 0:02:59]}  Nxe5 {[%clk 0:02:29]} 18. Qf5+ {[%clk 0:02:59]}  Kb8 {[%clk 0:02:29]} 19. Nb3 {[%clk 0:02:34]}  Nc4 {[%clk 0:02:26]} 20. Rhe1 {[%clk 0:02:23]}  Rhe8 {[%clk 0:02:12]} 21. Qd3 {[%clk 0:01:57]}  Rxe1 {[%clk 0:01:53]} 22. Rxe1 {[%clk 0:01:55]}  Qg3 {[%clk 0:01:28]} 23. Re7 {[%clk 0:01:45]}  Qg1+ {[%clk 0:00:56]} 24. Qd1 {[%clk 0:01:41]}  Qxd1+ {[%clk 0:00:44]} 25. Nxd1 {[%clk 0:01:42]}  Re8 {[%clk 0:00:40]} 26. Rxf7 {[%clk 0:01:35]}  Re1 {[%clk 0:00:39]} 27. Kc1 {[%clk 0:01:35]}  Rf1 {[%clk 0:00:14]} 28. Nd2 {[%clk 0:01:35]}  Nxd2 {[%clk 0:00:12]} 29. Kxd2 {[%clk 0:01:36]}  Rxf3 {[%clk 0:00:09]} 30. Rxg7 {[%clk 0:01:35]}  Rg3 {[%clk 0:00:08]} 31. Rg6 {[%clk 0:01:26]}  Nxg4 {[%clk 0:00:07]} 32. Nf2 {[%clk 0:01:20]}  Rg2 {[%clk 0:00:07]} 33. Rxg4 {[%clk 0:01:19]}  Rxf2+ {[%clk 0:00:08]} 34. Kd3 {[%clk 0:01:20]}  Rh2 {[%clk 0:00:08]} 35. Rg7 {[%clk 0:01:13]}  Rxh5 {[%clk 0:00:08]} 36. c3 {[%clk 0:01:10]}  Rh2 {[%clk 0:00:06]} 37. b4 {[%clk 0:01:09]}  Rxa2 {[%clk 0:00:06]} 38. Rh7 {[%clk 0:01:10]}  Rh2 {[%clk 0:00:06]} 39. Kd4 {[%clk 0:01:10]}  Ka7 {[%clk 0:00:06]} 40. Kxd5 {[%clk 0:01:10]}  Rh5+ {[%clk 0:00:05]} 41. Kd6 {[%clk 0:01:08]}  Rh4 {[%clk 0:00:03]} 42. Kd5 {[%clk 0:01:07]}  Rh5+ {[%clk 0:00:03]} 43. Kc4 {[%clk 0:01:08]}  Rh4+ {[%clk 0:00:03]} 44. Kb3 {[%clk 0:01:08]}  Rh3 {[%clk 0:00:03]} 45. Kc4 {[%clk 0:01:07]}  Kb6 {[%clk 0:00:03]} 46. Rg7 {[%clk 0:01:05]}  Kc6 {[%clk 0:00:03]} 47. Rg6+ {[%clk 0:01:06]}  Kc7 {[%clk 0:00:04]} 48. Kd4 {[%clk 0:01:05]}  h5 {[%clk 0:00:03]} 49. c4 {[%clk 0:01:06]}  h4 {[%clk 0:00:03]} 50. Rh6 {[%clk 0:01:06]}  Rh1 {[%clk 0:00:00]} 51. Kc5 {[%clk 0:01:06]} 1-0

[Event "January 9 Late 2024"]
[Site "https://www.chess.com"]
[Date "2024.01.09"]
[Round "4"]
[White "Meduri, Aakaash"]
[Black "Hua, Lefong"]
[Result "0-1"]
[Board "133"]
[TimeControl "180+1"]
[WhiteFideId "2032252"]
[BlackFideId "2602253"]
[WhiteElo "2411"]
[BlackElo "2651"]
[WhiteTeam "USA"]
[BlackTeam "CAN"]
[WhiteClock "0:00:00"]
[BlackClock "0:00:57"]

1. Nf3 {[%clk 0:03:00]}  Nf6 {[%clk 0:02:59]} 2. c4 {[%clk 0:03:00]}  g6 {[%clk 0:03:00]} 3. g3 {[%clk 0:02:59]}  Bg7 {[%clk 0:03:01]} 4. Bg2 {[%clk 0:03:00]}  O-O {[%clk 0:03:01]} 5. Nc3 {[%clk 0:03:00]}  c5 {[%clk 0:03:02]} 6. O-O {[%clk 0:03:01]}  Nc6 {[%clk 0:03:03]} 7. b3 {[%clk 0:03:01]}  d6 {[%clk 0:03:02]} 8. Bb2 {[%clk 0:03:01]}  a6 {[%clk 0:03:02]} 9. e3 {[%clk 0:03:00]}  Bg4 {[%clk 0:03:01]} 10. h3 {[%clk 0:03:01]}  Bxf3 {[%clk 0:03:01]} 11. Bxf3 {[%clk 0:03:02]}  Rb8 {[%clk 0:03:01]} 12. d4 {[%clk 0:03:00]}  cxd4 {[%clk 0:03:00]} 13. exd4 {[%clk 0:03:00]}  e5 {[%clk 0:03:01]} 14. Bxc6 {[%clk 0:02:53]}  bxc6 {[%clk 0:03:01]} 15. dxe5 {[%clk 0:02:53]}  dxe5 {[%clk 0:03:02]} 16. Na4 {[%clk 0:02:51]}  e4 {[%clk 0:02:50]} 17. Qc2 {[%clk 0:02:36]}  Qd7 {[%clk 0:02:47]} 18. Kg2 {[%clk 0:02:34]}  Qf5 {[%clk 0:02:47]} 19. Rae1 {[%clk 0:02:31]}  Rfe8 {[%clk 0:02:44]} 20. Qe2 {[%clk 0:02:04]}  h5 {[%clk 0:02:41]} 21. Qe3 {[%clk 0:01:59]}  Kh7 {[%clk 0:02:29]} 22. Qc5 {[%clk 0:01:58]}  Qf3+ {[%clk 0:02:21]} 23. Kh2 {[%clk 0:01:53]}  h4 {[%clk 0:02:20]} 24. Qg5 {[%clk 0:01:44]}  Kg8 {[%clk 0:01:51]} 25. Qxh4 {[%clk 0:01:07]}  Qf5 {[%clk 0:01:38]} 26. g4 {[%clk 0:00:44]}  Qf4+ {[%clk 0:01:33]} 27. Qg3 {[%clk 0:00:42]}  Qd2 {[%clk 0:01:33]} 28. g5 {[%clk 0:00:32]}  Nh5 {[%clk 0:01:31]} 29. Qe3 {[%clk 0:00:19]}  Rbd8 {[%clk 0:01:30]} 30. Bxg7 {[%clk 0:00:17]}  Nxg7 {[%clk 0:01:27]} 31. Re2 {[%clk 0:00:14]}  Qd6+ {[%clk 0:01:24]} 32. Qg3 {[%clk 0:00:10]}  Qe7 {[%clk 0:01:20]} 33. f3 {[%clk 0:00:06]}  Nf5 {[%clk 0:01:19]} 34. Qf4 {[%clk 0:00:05]}  e3 {[%clk 0:01:17]} 35. Nc3 {[%clk 0:00:05]}  Kg7 {[%clk 0:01:02]} 36. Ne4 {[%clk 0:00:05]}  Rd4 {[%clk 0:01:02]} 37. Rfe1 {[%clk 0:00:04]}  Rh8 {[%clk 0:01:02]} 38. Kg2 {[%clk 0:00:03]}  Qe6 {[%clk 0:01:01]} 39. Qg4 {[%clk 0:00:00]}  Rh4 {[%clk 0:00:57]} 0-1

[Event "January 9 Late 2024"]
[Site "https://www.chess.com"]
[Date "2024.01.09"]
[Round "4"]
[White "Koziol, Kamil"]
[Black "Yurovskykh, Oleksandr"]
[Result "1-0"]
[Board "135"]
[TimeControl "180+1"]
[WhiteFideId "1161555"]
[BlackFideId "14134020"]
[WhiteElo "2405"]
[BlackElo "2640"]
[WhiteTeam "POL"]
[BlackTeam "UKR"]
[WhiteClock "0:00:02"]
[BlackClock "0:00:00"]

1. e4 {[%clk 0:02:59]}  e6 {[%clk 0:02:59]} 2. d4 {[%clk 0:02:59]}  d5 {[%clk 0:03:00]} 3. Nc3 {[%clk 0:02:59]}  dxe4 {[%clk 0:03:00]} 4. Nxe4 {[%clk 0:02:59]}  Bd7 {[%clk 0:03:00]} 5. Bd3 {[%clk 0:02:54]}  Bc6 {[%clk 0:02:59]} 6. c3 {[%clk 0:02:55]}  Nd7 {[%clk 0:02:58]} 7. Nf3 {[%clk 0:02:51]}  Ngf6 {[%clk 0:02:58]} 8. Qe2 {[%clk 0:02:48]}  Nxe4 {[%clk 0:02:57]} 9. Bxe4 {[%clk 0:02:48]}  Bxe4 {[%clk 0:02:56]} 10. Qxe4 {[%clk 0:02:48]}  c6 {[%clk 0:02:54]} 11. Bg5 {[%clk 0:02:44]}  Be7 {[%clk 0:02:51]} 12. Bxe7 {[%clk 0:02:42]}  Qxe7 {[%clk 0:02:52]} 13. O-O-O {[%clk 0:02:41]}  O-O-O {[%clk 0:02:44]} 14. Rhe1 {[%clk 0:02:37]}  Nf6 {[%clk 0:02:39]} 15. Qc2 {[%clk 0:02:37]}  Rd5 {[%clk 0:02:25]} 16. Ne5 {[%clk 0:02:29]}  Rhd8 {[%clk 0:02:23]} 17. g4 {[%clk 0:02:27]}  g6 {[%clk 0:02:13]} 18. h3 {[%clk 0:02:23]}  Nd7 {[%clk 0:02:04]} 19. Nf3 {[%clk 0:02:11]}  Qf6 {[%clk 0:02:02]} 20. Qe4 {[%clk 0:02:03]}  h5 {[%clk 0:01:40]} 21. Rg1 {[%clk 0:01:21]}  hxg4 {[%clk 0:01:31]} 22. hxg4 {[%clk 0:01:20]}  c5 {[%clk 0:01:03]} 23. dxc5 {[%clk 0:00:46]}  Nxc5 {[%clk 0:00:57]} 24. Qe3 {[%clk 0:00:43]}  b6 {[%clk 0:00:38]} 25. Nd4 {[%clk 0:00:33]}  e5 {[%clk 0:00:20]} 26. Nf3 {[%clk 0:00:18]}  Rxd1+ {[%clk 0:00:20]} 27. Rxd1 {[%clk 0:00:18]}  Rxd1+ {[%clk 0:00:20]} 28. Kxd1 {[%clk 0:00:18]}  e4 {[%clk 0:00:21]} 29. Nd2 {[%clk 0:00:13]}  Qe6 {[%clk 0:00:20]} 30. b3 {[%clk 0:00:07]}  Qxg4+ {[%clk 0:00:20]} 31. Kc2 {[%clk 0:00:08]}  f5 {[%clk 0:00:15]} 32. Qd4 {[%clk 0:00:08]}  Qh3 {[%clk 0:00:11]} 33. f3 {[%clk 0:00:03]}  exf3 {[%clk 0:00:07]} 34. Nc4 {[%clk 0:00:03]}  Qh7 {[%clk 0:00:05]} 35. Nd6+ {[%clk 0:00:02]}  Kc7 {[%clk 0:00:04]} 36. Nb5+ {[%clk 0:00:02]}  Kb7 {[%clk 0:00:04]} 37. Qd5+ {[%clk 0:00:03]}  Ka6 {[%clk 0:00:02]} 38. Nd6 {[%clk 0:00:02]}  Qd7 {[%clk 0:00:01]} 39. Qc4+ {[%clk 0:00:01]}  b5 {[%clk 0:00:00]} 40. Qd5 {[%clk 0:00:02]} 1-0

[Event "January 9 Late 2024"]
[Site "https://www.chess.com"]
[Date "2024.01.09"]
[Round "4"]
[White "Marchesich, Giovanni"]
[Black "Gubajdullin, Alexei"]
[Result "1-0"]
[Board "137"]
[TimeControl "180+1"]
[WhiteFideId "2824790"]
[BlackFideId "4141202"]
[WhiteElo "2400"]
[BlackElo "2635"]
[WhiteTeam "ITA"]
[BlackTeam "RUS"]
[WhiteClock "0:01:12"]
[BlackClock "0:00:27"]

1. d4 {[%clk 0:03:00]}  Nf6 {[%clk 0:02:58]} 2. Nc3 {[%clk 0:03:01]}  d5 {[%clk 0:02:57]} 3. Bf4 {[%clk 0:03:01]}  a6 {[%clk 0:02:56]} 4. e3 {[%clk 0:03:01]}  Nbd7 {[%clk 0:02:57]} 5. g4 {[%clk 0:02:59]}  e6 {[%clk 0:02:51]} 6. Bd3 {[%clk 0:02:54]}  Bd6 {[%clk 0:02:48]} 7. g5 {[%clk 0:02:54]}  Ng8 {[%clk 0:02:47]} 8. Nf3 {[%clk 0:02:50]}  Bxf4 {[%clk 0:02:43]} 9. exf4 {[%clk 0:02:50]}  Ne7 {[%clk 0:02:44]} 10. Ne5 {[%clk 0:02:44]}  Nxe5 {[%clk 0:02:38]} 11. fxe5 {[%clk 0:02:43]}  Nc6 {[%clk 0:02:37]} 12. Qg4 {[%clk 0:02:39]}  Nb4 {[%clk 0:02:25]} 13. O-O-O {[%clk 0:02:39]}  c5 {[%clk 0:02:20]} 14. Kb1 {[%clk 0:02:21]}  Qa5 {[%clk 0:02:18]} 15. dxc5 {[%clk 0:02:17]}  Qxc5 {[%clk 0:02:13]} 16. f4 {[%clk 0:02:12]}  g6 {[%clk 0:02:11]} 17. h4 {[%clk 0:02:12]}  Bd7 {[%clk 0:02:08]} 18. h5 {[%clk 0:02:05]}  Rf8 {[%clk 0:02:08]} 19. a3 {[%clk 0:01:52]}  Nxd3 {[%clk 0:02:07]} 20. Rxd3 {[%clk 0:01:53]}  b5 {[%clk 0:02:06]} 21. Rhd1 {[%clk 0:01:46]}  a5 {[%clk 0:02:00]} 22. Ne4 {[%clk 0:01:40]}  Qb6 {[%clk 0:01:30]} 23. Nf6+ {[%clk 0:01:37]}  Ke7 {[%clk 0:01:24]} 24. Rxd5 {[%clk 0:01:28]}  Rfd8 {[%clk 0:00:54]} 25. Rxd7+ {[%clk 0:01:23]}  Rxd7 {[%clk 0:00:54]} 26. Rxd7+ {[%clk 0:01:24]}  Kf8 {[%clk 0:00:55]} 27. hxg6 {[%clk 0:01:23]}  hxg6 {[%clk 0:00:27]} 28. Qh4 {[%clk 0:01:12]} 1-0

[Event "January 9 Late 2024"]
[Site "https://www.chess.com"]
[Date "2024.01.09"]
[Round "4"]
[White "Garakov, Mikhael"]
[Black "Avalos Parra, Joao"]
[Result "0-1"]
[Board "138"]
[TimeControl "180+1"]
[WhiteFideId "4169034"]
[BlackFideId "3402541"]
[WhiteElo "2634"]
[BlackElo "2392"]
[WhiteTeam "RUS"]
[BlackTeam "CHI"]
[WhiteClock "0:01:33"]
[BlackClock "0:01:39"]

1. e4 {[%clk 0:03:00]}  e5 {[%clk 0:03:00]} 2. Nf3 {[%clk 0:03:00]}  Nc6 {[%clk 0:03:00]} 3. Bb5 {[%clk 0:03:00]}  a6 {[%clk 0:03:01]} 4. Bxc6 {[%clk 0:03:00]}  dxc6 {[%clk 0:03:00]} 5. O-O {[%clk 0:03:00]}  Bd6 {[%clk 0:02:49]} 6. d4 {[%clk 0:02:59]}  exd4 {[%clk 0:02:34]} 7. Qxd4 {[%clk 0:02:58]}  f6 {[%clk 0:02:30]} 8. Rd1 {[%clk 0:02:57]}  Bg4 {[%clk 0:02:22]} 9. Nc3 {[%clk 0:02:34]}  Bxf3 {[%clk 0:02:11]} 10. gxf3 {[%clk 0:02:33]}  Ne7 {[%clk 0:02:12]} 11. Qc4 {[%clk 0:02:30]}  Qc8 {[%clk 0:01:53]} 12. Ne2 {[%clk 0:01:42]}  g5 {[%clk 0:01:49]} 13. Nd4 {[%clk 0:01:39]}  Qh3 {[%clk 0:01:43]} 14. Qf1 {[%clk 0:01:33]}  Qxh2# {[%clk 0:01:39]} 0-1